lending/lending_fUSD_20240207
["ID","MTS","AMOUNT","RATE_DAILY","PERIOD"]
[313419010,1707329493121,-500.0,0.00047397,31]
[313419011,1707329493131,-500.0,0.00047397,31]
[313419012,1707329493141,-500.0,0.00047397,31]
[313419013,1707329493151,-500.0,0.00047397,31]
[313419014,1707329493160,-602.33,0.00047397,31]
[313419015,1707329493170,-598.82210919,0.00047397,31]
[313419016,1707329493181,-500.0,0.00047397,31]
[313419017,1707329493190,-500.0,0.00047397,31]
[313419018,1707329493200,-500.03910027,0.00047397,31]
[313419019,1707329493210,-500.0,0.00047397,31]
[313419020,1707329493220,-663.39,0.00047397,31]
[313419021,1707329493230,-500.0,0.00047397,31]
[313419022,1707329493241,-500.0,0.00047397,31]
[313419023,1707329493251,-500.0,0.00047397,31]
[313419024,1707329493260,-500.0,0.00047397,31]
[313419025,1707329493270,-500.0,0.00047397,31]
[313419026,1707329493280,-500.0,0.00047397,31]
[313419027,1707329493289,-721.86,0.00047397,31]
[313419028,1707329493299,-559.92609618,0.00047397,31]
[313419029,1707329493308,-500.0,0.00047397,31]
[313419030,1707329493318,-1584.3,0.00047397,31]
[313419031,1707329493328,-500.0,0.00047397,31]
[313419032,1707329493337,-8.54505774,0.00047397,31]
[313419033,1707329493857,-491.45494226,0.00047397,31]
[313419034,1707329493868,-500.0,0.00047397,31]
[313419035,1707329493877,-500.0,0.00047397,31]
[313419036,1707329493887,-500.0,0.00047397,31]
[313419037,1707329493896,-500.0,0.00047397,31]
[313419038,1707329493906,-500.0,0.00047397,31]
[313419039,1707329493915,-500.0,0.00047397,31]
[313419040,1707329493924,-500.0,0.00047397,31]
[313419041,1707329493934,-527.82,0.00047397,31]
[313419042,1707329493943,-904.64,0.00047397,31]
[313419043,1707329493953,-500.0,0.00047397,31]
[313419044,1707329493962,-500.0,0.00047397,31]
[313419045,1707329493971,-500.0,0.00047397,31]
[313419046,1707329493983,-843.81,0.00047397,31]
[313419047,1707329493993,-550.2,0.00047397,31]
[313419048,1707329494003,-500.0,0.00047397,31]
[313419049,1707329494012,-500.0,0.00047397,31]
[313419050,1707329494023,-500.0,0.00047397,31]
[313419051,1707329494035,-500.0,0.00047397,31]
[313419052,1707329494044,-500.0,0.00047397,31]
[313419053,1707329494053,-157.43835703,0.00047397,31]
[313419054,1707329494063,-732.91,0.00047397,31]
[313419055,1707329494072,-500.0,0.00047397,31]
[313419056,1707329494082,-500.0,0.00047397,31]
[313419057,1707329494091,-500.0,0.00047397,31]
[313419058,1707329494101,-500.0,0.00047397,31]
[313419059,1707329494113,-566.21,0.00047397,31]
[313419060,1707329494127,-1854.49,0.00047397,31]
[313419061,1707329494140,-1213.68,0.00047397,31]
[313419062,1707329494153,-986.87,0.00047397,31]
[313419063,1707329494166,-500.0,0.00047397,31]
[313419064,1707329494178,-500.0,0.00047397,31]
[313419065,1707329494189,-500.0,0.00047397,31]
[313419066,1707329494200,-500.0,0.00047397,31]
[313419067,1707329494214,-500.0,0.00047397,31]
[313419068,1707329494226,-500.0,0.00047397,31]
[313419069,1707329494239,-500.0,0.00047397,31]
[313419070,1707329494252,-500.0,0.00047397,31]
[313419071,1707329494264,-660.9,0.00047397,31]
[313419072,1707329494278,-697.29,0.00047397,31]
[313419073,1707329494289,-233.45355314,0.00047397,31]
[313419074,1707329494302,-513.75,0.00047397,31]
[313419075,1707329494313,-500.0,0.00047397,31]
[313419076,1707329494324,-500.0,0.00047397,31]
[313419077,1707329494336,-1107.1,0.00047397,31]
[313419078,1707329494348,-500.0,0.00047397,31]
[313419079,1707329494360,-500.0,0.00047397,31]
[313419080,1707329494375,-500.0,0.00047397,31]
[313419081,1707329494386,-500.0,0.00047397,31]
[313419082,1707329494398,-1046.34,0.00047397,31]
[313419083,1707329494409,-500.0,0.00047397,31]
[313419084,1707329494422,-500.0,0.00047397,31]
[313419085,1707329494434,-712.21,0.00047397,31]
[313419086,1707329494446,-500.0,0.00047397,31]
[313419087,1707329494456,-1498.0,0.00047397,31]
[313419088,1707329494466,-500.0,0.00047397,31]
[313419089,1707329494480,-573.47,0.00047397,31]
[313419090,1707329494492,-500.0,0.00047397,31]
[313419091,1707329494503,-594.69660825,0.00047397,31]
[313419092,1707329494516,-500.0,0.00047397,31]
[313419093,1707329494527,-500.0,0.00047397,31]
[313419094,1707329494538,-163.90602491,0.00047397,31]
[313419095,1707329494549,-732.82,0.00047397,31]
[313419096,1707329494560,-500.0,0.00047397,31]
[313419097,1707329494572,-500.0,0.00047397,31]
[313419098,1707329494584,-1106.04,0.00047397,31]
[313419099,1707329494595,-2845.58,0.00047397,31]
[313419100,1707329494608,-500.0,0.00047397,31]
[313419101,1707329494620,-781.15,0.00047397,31]
[313419102,1707329494632,-500.0,0.00047397,31]
[313419103,1707329494645,-2069.59,0.00047397,5]
[313419104,1707329494656,-500.0,0.00047397,31]
[313419105,1707329494668,-556.21,0.00047397,31]
[313419106,1707329494678,-544.85,0.00047397,31]
[313419107,1707329494688,-500.0,0.00047397,31]
[313419108,1707329494698,-500.0,0.00047397,31]
[313419109,1707329494708,-1350.97,0.00047397,31]
[313419110,1707329494719,-500.0,0.00047397,31]
[313419111,1707329494730,-500.0,0.00047397,31]
[313419112,1707329494742,-1188.82,0.00047397,31]
[313419113,1707329494753,-500.0,0.00047397,31]
[313419114,1707329494764,-500.0,0.00047397,31]
[313419115,1707329494776,-500.0,0.00047397,31]
[313419116,1707329494791,-500.0,0.00047397,31]
[313419117,1707329494802,-691.2,0.00047397,31]
[313419118,1707329494813,-1081.82,0.00047397,31]
[313419119,1707329494824,-282.58386916,0.00047397,31]
[313419120,1707329494835,-704.62,0.00047397,7]
[313419121,1707329494847,-500.0,0.00047397,31]
[313419122,1707329494858,-540.3,0.00047397,31]
[313419123,1707329494871,-500.0,0.00047397,31]
[313419124,1707329494882,-500.0,0.00047397,31]
[313419125,1707329494893,-595.09,0.00047397,31]
[313419126,1707329494904,-500.0,0.00047397,31]
[313419127,1707329494916,-500.0,0.00047397,31]
[313419128,1707329494927,-508.54,0.00047397,31]
[313419129,1707329494939,-500.0,0.00047397,31]
[313419130,1707329494950,-656.35,0.00047397,31]
[313419131,1707329494962,-500.0,0.00047397,31]
[313419132,1707329494973,-500.0,0.00047397,31]
[313419133,1707329494986,-500.0,0.00047397,31]
[313419134,1707329494997,-555.75,0.00047397,31]
[313419135,1707329495009,-500.0,0.00047397,31]
[313419136,1707329495021,-500.0,0.00047397,31]
[313419137,1707329495035,-500.0,0.00047397,31]
[313419138,1707329495046,-500.0,0.00047397,31]
[313419139,1707329495057,-169.81,0.00047397,31]
[313419140,1707329495069,-500.0,0.00047397,31]
[313419141,1707329495080,-705.26,0.00047397,31]
[313419142,1707329495091,-500.0,0.00047397,31]
[313419143,1707329495103,-674.4,0.00047397,31]
[313419144,1707329495117,-1000.0,0.00047397,7]
[313419145,1707329495128,-500.0,0.00047397,31]
[313419146,1707329495139,-500.0,0.00047397,31]
[313419147,1707329495151,-1599.5,0.00047397,31]
[313419148,1707329495162,-500.0,0.00047397,31]
[313419149,1707329495173,-1402.51,0.00047397,31]
[313419150,1707329495185,-500.0,0.00047397,31]
[313419151,1707329495196,-1711.76,0.00047397,31]
[313419152,1707329495208,-500.0,0.00047397,31]
[313419153,1707329495219,-500.0,0.00047397,31]
[313419154,1707329495230,-1432.09,0.00047397,31]
[313419155,1707329495241,-500.0,0.00047397,31]
[313419156,1707329495251,-381.34275526,0.00047397,31]
[313419157,1707329495271,-118.65724474,0.00047397,31]
[313419158,1707329495282,-500.0,0.00047397,31]
[313419159,1707329495292,-211.29501825,0.00047397,31]
[313419160,1707329687135,-162.89929912,0.00022695,2]
[313419161,1707329687156,-272.0452652,0.00022696,2]
[313419162,1707329687177,-1041.04719538,0.00022696,2]
[313419163,1707329687197,-300.0,0.00022698,2]
[313419164,1707329687218,-408.13209907,0.00022798,2]
[313419165,1707329687239,-10.87614123,0.00022798,2]
[313419166,1707329809674,153.11,0.00021631,2]
[313419167,1707329817466,-272.0452652,0.00022692,2]
[313419168,1707329817488,-162.8734919,0.00022797,2]
[313419169,1707329817511,-702.0553,0.00022797,2]
[313419170,1707329817533,-150.0,0.00022797,2]
[313419171,1707329817554,-150.0,0.00022797,2]
[313419172,1707329817575,-563.0259429,0.00022798,2]
[313419173,1707329818426,-1041.04719538,0.00022691,2]
[313419174,1707329818446,-958.95280462,0.00022798,2]
[313419175,1707329819196,-2000.0,0.00022798,2]
[313419176,1707329819798,-2000.0,0.00022798,2]
[313419177,1707329821378,-2000.0,0.00022798,2]
[313419178,1707329825133,-925.0,0.00022798,2]
[313419179,1707329837056,272.0452652,0.00022341,2]
[313419180,1707329848142,1092.36976186,0.00022798,5]
[313419181,1707329853025,111.91683943,0.00022341,2]
[313419182,1707329853048,160.12842577,0.00022341,2]
[313419183,1707329873025,272.0452652,0.00022341,2]
[313419184,1707329897034,324.10606802,0.00022341,2]
[313419185,1707329921667,161.1774812,0.00022341,2]
[313419186,1707329921691,726.61398613,0.00022341,2]
[313419187,1707329924824,157.72754561,0.00022468,2]
[313419188,1707329929609,33.11570845,0.00022341,2]
[313419189,1707329929631,121.88429155,0.00022341,2]
[313419190,1707329939656,795.57294864,0.00022341,2]
[313419191,1707329939680,20.21839585,0.00022341,2]
[313419192,1707329945863,283.18163303,0.00022341,2]
[313419193,1707329951296,273.44259629,0.0002234,2]
[313419205,1707330459371,-159.48035279,0.00043189,60]
[313419206,1707330463950,-296921.0,0.0004135,30]
[313419207,1707330463973,-14679.00163838,0.000419,30]
[313419208,1707330463998,-810.18251593,0.00043,30]
[313419209,1707330464022,-43749.79348775,0.000433,30]
[313419210,1707330464046,-1500.0,0.00043835,30]
[313419211,1707330464069,-500.0,0.00044712,30]
[313419212,1707330464093,-158.13885783,0.00044998,30]
[313419213,1707330464118,-100000.0,0.00045,35]
[313419214,1707330464140,-253.9294666,0.00045,30]
[313419215,1707330464162,-150.0,0.00045173,30]
[313419216,1707330464185,-150.0,0.00045173,30]
[313419217,1707330464207,-500.0,0.0004526,30]
[313419218,1707330464231,-500.0,0.00045808,30]
[313419219,1707330464254,-583.32254342,0.00045998,30]
[313419220,1707330464281,-100000.0,0.00046,36]
[313419221,1707330464303,-500.0,0.00046356,30]
[313419222,1707330464326,-150.0,0.00046428,30]
[313419223,1707330464352,-11592.89707196,0.00046572,30]
[313419224,1707330464375,-500.0,0.00046575,31]
[313419225,1707330464397,-500.0,0.00046575,31]
[313419226,1707330464420,-216.69763265,0.00046575,31]
[313419227,1707330464442,-500.0,0.00046575,31]
[313419228,1707330464464,-574.12203677,0.00046575,31]
[313419229,1707330464486,-500.0,0.00046575,31]
[313419230,1707330464507,-500.0,0.00046575,31]
[313419231,1707330464529,-200.26101007,0.00046575,31]
[313419232,1707330464552,-500.0,0.00046575,31]
[313419233,1707330464575,-500.0,0.00046575,31]
[313419234,1707330464597,-500.0,0.00046575,31]
[313419235,1707330464618,-500.0,0.00046575,31]
[313419236,1707330464640,-500.0,0.00046575,31]
[313419237,1707330464676,-500.0,0.00046575,31]
[313419238,1707330464701,-500.0,0.00046575,31]
[313419239,1707330464725,-500.0,0.00046575,31]
[313419240,1707330464748,-500.0,0.00046575,31]
[313419241,1707330464772,-500.0,0.00046575,31]
[313419242,1707330464795,-500.0,0.00046575,31]
[313419243,1707330464819,-500.0,0.00046575,31]
[313419244,1707330464842,-500.0,0.00046575,31]
[313419245,1707330464866,-500.0,0.00046575,31]
[313419246,1707330464888,-518.35992235,0.00046575,31]
[313419247,1707330464911,-500.0,0.00046575,31]
[313419248,1707330464933,-500.0,0.00046575,31]
[313419249,1707330464956,-500.0,0.00046575,31]
[313419250,1707330464979,-500.0,0.00046575,31]
[313419251,1707330465002,-500.0,0.00046575,31]
[313419252,1707330465026,-500.0,0.00046575,31]
[313419253,1707330465049,-500.0,0.00046575,31]
[313419254,1707330465072,-500.0,0.00046575,31]
[313419255,1707330465095,-500.0,0.00046575,31]
[313419256,1707330465118,-430.22911905,0.00046575,31]
[313419257,1707330465141,-327.21609903,0.00046575,31]
[313419258,1707330465164,-500.0,0.00046575,31]
[313419259,1707330465191,-500.0,0.00046575,31]
[313419260,1707330465216,-500.0,0.00046575,31]
[313419261,1707330465240,-153.91771204,0.00046575,31]
[313419262,1707330465263,-250.0,0.00046575,31]
[313419263,1707330465287,-500.0,0.00046575,31]
[313419264,1707330465311,-502.52,0.00046575,31]
[313419265,1707330465662,-500.0,0.00046575,31]
[313419266,1707330465686,-500.0,0.00046575,31]
[313419267,1707330465709,-502.80482481,0.00046575,31]
[313419268,1707330465732,-500.0,0.00046575,31]
[313419269,1707330465755,-500.0,0.00046575,31]
[313419270,1707330465779,-500.0,0.00046575,31]
[313419271,1707330465805,-500.0,0.00046575,31]
[313419272,1707330465828,-500.0,0.00046575,31]
[313419273,1707330465850,-500.0,0.00046575,31]
[313419274,1707330465872,-431.77465837,0.00046575,31]
[313419275,1707330465894,-500.0,0.00046575,31]
[313419276,1707330465916,-500.0,0.00046575,31]
[313419277,1707330465939,-500.0,0.00046575,31]
[313419278,1707330465960,-500.0,0.00046575,31]
[313419279,1707330465982,-500.0,0.00046575,31]
[313419280,1707330466003,-500.0,0.00046575,31]
[313419281,1707330466025,-500.0,0.00046575,31]
[313419282,1707330466048,-500.0,0.00046575,31]
[313419283,1707330466069,-201.496863,0.00046575,31]
[313419284,1707330466092,-500.0,0.00046575,31]
[313419285,1707330466114,-500.0,0.00046575,31]
[313419286,1707330466135,-500.0,0.00046575,31]
[313419287,1707330466158,-365.12342936,0.00046575,31]
[313419288,1707330466180,-500.0,0.00046575,31]
[313419289,1707330466203,-280.13075227,0.00046575,31]
[313419290,1707330466226,-500.0,0.00046575,31]
[313419291,1707330466248,-500.0,0.00046575,31]
[313419292,1707330466272,-500.0,0.00046575,31]
[313419293,1707330466297,-500.0,0.00046575,31]
[313419294,1707330466320,-500.0,0.00046575,31]
[313419295,1707330466342,-500.0,0.00046575,31]
[313419296,1707330466365,-511.45698939,0.00046575,31]
[313419297,1707330466387,-500.0,0.00046575,31]
[313419298,1707330466411,-500.0,0.00046575,31]
[313419299,1707330466432,-500.0,0.00046575,31]
[313419300,1707330466454,-293.85260965,0.00046575,31]
[313419301,1707330466476,-500.0,0.00046575,31]
[313419302,1707330466499,-545.08617107,0.00046575,31]
[313419303,1707330466532,-503.98478447,0.00046575,31]
[313419304,1707330466558,-500.0,0.00046575,31]
[313419305,1707330466582,-500.0,0.00046575,31]
[313419306,1707330466604,-500.0,0.00046575,31]
[313419307,1707330466627,-500.0,0.00046575,31]
[313419308,1707330466651,-599.94730984,0.00046575,31]
[313419309,1707330466675,-500.0,0.00046575,31]
[313419310,1707330466697,-447.96253741,0.00046575,31]
[313419311,1707330466720,-500.0,0.00046575,31]
[313419312,1707330466743,-443.26642157,0.00046575,31]
[313419313,1707330466765,-500.0,0.00046575,31]
[313419314,1707330466789,-500.0,0.00046575,31]
[313419315,1707330466813,-500.0,0.00046575,31]
[313419316,1707330466837,-587.16537578,0.00046575,31]
[313419317,1707330466860,-500.0,0.00046575,31]
[313419318,1707330466884,-500.0,0.00046575,31]
[313419319,1707330466907,-500.0,0.00046575,31]
[313419320,1707330466930,-500.0,0.00046575,31]
[313419321,1707330466954,-500.0,0.00046575,31]
[313419322,1707330466977,-500.0,0.00046575,31]
[313419323,1707330467000,-500.0,0.00046575,31]
[313419324,1707330467023,-500.0,0.00046575,31]
[313419325,1707330467046,-500.0,0.00046575,31]
[313419326,1707330467073,-500.0,0.00046575,31]
[313419327,1707330467096,-500.0,0.00046575,31]
[313419328,1707330467121,-500.0,0.00046575,31]
[313419329,1707330467144,-500.0,0.00046575,31]
[313419330,1707330467167,-500.0,0.00046575,31]
[313419331,1707330467192,-500.0,0.00046575,31]
[313419332,1707330467216,-500.0,0.00046575,31]
[313419333,1707330467239,-573.67393314,0.00046575,31]
[313419334,1707330467261,-630.16305266,0.00046575,31]
[313419335,1707330467286,-507.68395895,0.00046575,31]
[313419336,1707330467309,-500.0,0.00046575,31]
[313419337,1707330467331,-500.0,0.00046575,31]
[313419338,1707330467354,-500.0,0.00046575,31]
[313419339,1707330467377,-158.14984589,0.00046575,31]
[313419340,1707330467400,-500.0,0.00046575,31]
[313419341,1707330467460,-475.52670529,0.00046575,31]
[313419342,1707330467483,-500.0,0.00046575,31]
[313419343,1707330467506,-500.0,0.00046575,31]
[313419344,1707330467528,-500.0,0.00046575,31]
[313419345,1707330467550,-500.0,0.00046575,31]
[313419346,1707330467572,-500.0,0.00046575,31]
[313419347,1707330467594,-500.0,0.00046575,31]
[313419348,1707330467616,-500.0,0.00046575,31]
[313419349,1707330467638,-500.0,0.00046575,31]
[313419350,1707330467661,-500.0,0.00046575,31]
[313419351,1707330467684,-500.0,0.00046575,31]
[313419352,1707330467707,-500.0,0.00046575,31]
[313419353,1707330467729,-500.0,0.00046575,31]
[313419354,1707330467751,-500.0,0.00046575,31]
[313419355,1707330467773,-500.0,0.00046575,31]
[313419356,1707330467796,-522.51700971,0.00046575,31]
[313419357,1707330467821,-500.0,0.00046575,31]
[313419358,1707330467844,-591.2,0.00046575,31]
[313419359,1707330467868,-500.0,0.00046575,31]
[313419360,1707330467891,-500.0,0.00046575,31]
[313419361,1707330467913,-500.0,0.00046575,31]
[313419362,1707330467935,-500.0,0.00046575,31]
[313419363,1707330467958,-500.0,0.00046575,31]
[313419364,1707330467980,-409.84364107,0.00046575,31]
[313419365,1707330468003,-500.0,0.00046575,31]
[313419366,1707330468026,-500.0,0.00046575,31]
[313419367,1707330468049,-500.0,0.00046575,31]
[313419368,1707330468072,-500.0,0.00046575,31]
[313419369,1707330468094,-500.0,0.00046575,31]
[313419370,1707330468357,-500.0,0.00046575,31]
[313419371,1707330468383,-500.0,0.00046575,31]
[313419372,1707330468407,-500.0,0.00046575,31]
[313419373,1707330468429,-500.0,0.00046575,31]
[313419374,1707330468451,-544.0261571,0.00046575,31]
[313419375,1707330468473,-500.0,0.00046575,31]
[313419376,1707330468494,-500.0,0.00046575,31]
[313419377,1707330468516,-500.0,0.00046575,31]
[313419378,1707330468537,-500.0,0.00046575,31]
[313419379,1707330468559,-500.0,0.00046575,31]
[313419380,1707330468580,-500.0,0.00046575,31]
[313419381,1707330468602,-500.0,0.00046575,31]
[313419382,1707330468624,-500.0,0.00046575,31]
[313419383,1707330468645,-500.0,0.00046575,31]
[313419384,1707330468667,-519.15,0.00046575,31]
[313419385,1707330468689,-500.0,0.00046575,31]
[313419386,1707330468710,-500.0,0.00046575,31]
[313419387,1707330468733,-500.0,0.00046575,31]
[313419388,1707330468755,-500.0,0.00046575,31]
[313419389,1707330468777,-500.0,0.00046575,31]
[313419390,1707330468799,-500.0,0.00046575,31]
[313419391,1707330468820,-576.35,0.00046575,31]
[313419392,1707330468842,-500.0,0.00046575,31]
[313419393,1707330468864,-500.0,0.00046575,31]
[313419394,1707330468886,-500.0,0.00046575,31]
[313419395,1707330468907,-421.57594755,0.00046575,31]
[313419396,1707330468929,-500.0,0.00046575,31]
[313419397,1707330468952,-500.0,0.00046575,31]
[313419398,1707330468974,-500.0,0.00046575,31]
[313419399,1707330468996,-500.0,0.00046575,31]
[313419400,1707330469020,-500.0,0.00046575,31]
[313419401,1707330469041,-500.0,0.00046575,31]
[313419402,1707330469063,-500.0,0.00046575,31]
[313419403,1707330469084,-500.0,0.00046575,31]
[313419404,1707330469106,-500.0,0.00046575,31]
[313419405,1707330469128,-500.0,0.00046575,31]
[313419406,1707330469151,-582.09,0.00046575,31]
[313419407,1707330469172,-500.0,0.00046575,31]
[313419408,1707330469199,-500.0,0.00046575,31]
[313419409,1707330469223,-500.0,0.00046575,31]
[313419410,1707330469245,-500.0,0.00046575,30]
[313419411,1707330469268,-500.0,0.00046575,31]
[313419412,1707330469294,-500.0,0.00046575,31]
[313419413,1707330469317,-500.0,0.00046575,31]
[313419414,1707330469340,-500.0,0.00046575,31]
[313419415,1707330469362,-500.0,0.00046575,31]
[313419416,1707330469386,-527.3951814,0.00046575,31]
[313419417,1707330469408,-500.0,0.00046575,31]
[313419418,1707330469430,-500.0,0.00046575,31]
[313419419,1707330469452,-500.0,0.00046575,31]
[313419420,1707330469474,-500.0,0.00046575,31]
[313419421,1707330469496,-500.0,0.00046575,31]
[313419422,1707330469519,-500.0,0.00046575,31]
[313419423,1707330469541,-500.0,0.00046575,31]
[313419424,1707330469567,-500.0,0.00046575,31]
[313419425,1707330469590,-500.0,0.00046575,31]
[313419426,1707330469612,-500.0,0.00046575,31]
[313419427,1707330469635,-500.0,0.00046575,31]
[313419428,1707330469659,-500.0,0.00046575,31]
[313419429,1707330469681,-500.0,0.00046575,31]
[313419430,1707330469704,-500.0,0.00046575,31]
[313419431,1707330469726,-500.0,0.00046575,31]
[313419432,1707330469748,-500.0,0.00046575,31]
[313419433,1707330469773,-500.0,0.00046575,31]
[313419434,1707330469795,-500.0,0.00046575,31]
[313419435,1707330469818,-208.14350538,0.00046575,31]
[313419436,1707330469842,-545.04,0.00046575,31]
[313419437,1707330469865,-500.0,0.00046575,31]
[313419438,1707330469887,-500.0,0.00046575,31]
[313419439,1707330469910,-500.0,0.00046575,31]
[313419440,1707330469933,-500.0,0.00046575,31]
[313419441,1707330469955,-398.96563574,0.00046575,31]
[313419442,1707330469977,-504.2521544,0.00046575,31]
[313419443,1707330469999,-500.0,0.00046575,31]
[313419444,1707330470021,-500.0,0.00046575,31]
[313419445,1707330470044,-500.0,0.00046575,31]
[313419446,1707330470066,-500.0,0.00046575,31]
[313419447,1707330470089,-500.0,0.00046575,31]
[313419448,1707330470111,-500.0,0.00046575,31]
[313419449,1707330470134,-577.98753009,0.00046575,31]
[313419450,1707330470158,-500.0,0.00046575,31]
[313419451,1707330470181,-500.0,0.00046575,31]
[313419452,1707330470204,-500.0,0.00046575,31]
[313419453,1707330470226,-500.0,0.00046575,31]
[313419454,1707330470248,-500.0,0.00046575,31]
[313419455,1707330470271,-500.0,0.00046575,31]
[313419456,1707330470299,-500.0,0.00046575,31]
[313419457,1707330470335,-500.0,0.00046575,31]
[313419458,1707330470362,-500.0,0.00046575,31]
[313419459,1707330470386,-427.1056249,0.00046575,31]
[313419460,1707330470412,-500.0,0.00046575,31]
[313419461,1707330470436,-500.0,0.00046575,31]
[313419462,1707330470461,-500.0,0.00046575,31]
[313419463,1707330470485,-500.0,0.00046575,31]
[313419464,1707330470510,-500.0,0.00046575,31]
[313419465,1707330470534,-234.24730431,0.00046575,31]
[313419466,1707330470561,-500.0,0.00046575,31]
[313419467,1707330470588,-613.16,0.00046575,31]
[313419468,1707330470612,-500.0,0.00046575,31]
[313419469,1707330470637,-500.0,0.00046575,31]
[313419470,1707330470660,-500.0,0.00046575,31]
[313419471,1707330470685,-500.0,0.00046575,31]
[313419472,1707330470710,-500.0,0.00046575,31]
[313419473,1707330470733,-500.0,0.00046575,31]
[313419474,1707330470757,-500.0,0.00046575,31]
[313419475,1707330471027,-500.0,0.00046575,31]
[313419476,1707330471052,-500.0,0.00046575,31]
[313419477,1707330471075,-500.0,0.00046575,31]
[313419478,1707330471099,-500.0,0.00046575,31]
[313419479,1707330471127,-500.0,0.00046575,31]
[313419480,1707330471152,-500.0,0.00046575,31]
[313419481,1707330471178,-500.0,0.00046575,31]
[313419482,1707330471202,-500.0,0.00046575,31]
[313419483,1707330471228,-500.0,0.00046575,31]
[313419484,1707330471253,-500.0,0.00046575,31]
[313419485,1707330471280,-500.0,0.00046575,31]
[313419486,1707330471306,-500.0,0.00046575,31]
[313419487,1707330471330,-500.0,0.00046575,31]
[313419488,1707330471352,-500.0,0.00046575,31]
[313419489,1707330471376,-500.0,0.00046575,31]
[313419490,1707330471399,-503.7,0.00046575,31]
[313419491,1707330471423,-507.30748305,0.00046575,31]
[313419492,1707330471447,-500.0,0.00046575,31]
[313419493,1707330471472,-917.02,0.00046575,31]
[313419494,1707330471495,-500.0,0.00046575,31]
[313419495,1707330471518,-500.0,0.00046575,31]
[313419496,1707330471541,-500.0,0.00046575,31]
[313419497,1707330471565,-500.0,0.00046575,31]
[313419498,1707330471589,-500.0,0.00046575,31]
[313419499,1707330471612,-500.0,0.00046575,31]
[313419500,1707330471634,-500.0,0.00046575,31]
[313419501,1707330471658,-500.0,0.00046575,31]
[313419502,1707330471682,-500.0,0.00046575,31]
[313419503,1707330471705,-500.0,0.00046575,31]
[313419504,1707330471729,-556.05,0.00046575,31]
[313419505,1707330471755,-500.0,0.00046575,31]
[313419506,1707330471778,-500.0,0.00046575,31]
[313419507,1707330471802,-500.0,0.00046575,31]
[313419508,1707330471825,-528.31670559,0.00046575,31]
[313419509,1707330471848,-500.0,0.00046575,31]
[313419510,1707330471875,-500.0,0.00046575,31]
[313419511,1707330471898,-500.0,0.00046575,31]
[313419512,1707330471921,-500.0,0.00046575,31]
[313419513,1707330471944,-500.0,0.00046575,31]
[313419514,1707330471967,-500.0,0.00046575,31]
[313419515,1707330471991,-589.62739362,0.00046575,31]
[313419516,1707330472014,-500.0,0.00046575,31]
[313419517,1707330472036,-500.0,0.00046575,31]
[313419518,1707330472059,-500.0,0.00046575,31]
[313419519,1707330472082,-500.0,0.00046575,31]
[313419520,1707330472105,-500.0,0.00046575,31]